Body Name,Body,Transaction Date,Value,Supplier,Description,Purchase Type,Cost Center,Department,Section
South Ribble Council,http://Statistics.Data.gov.uk\Doc\Local Authority\30UN,22/09/2020,948.00,Holiday Inn Express,holiday Inn Express NAME REDACTED dog placement 22.9.2020 x 14 nights fixed rates 948.00,Accomodation,124250,Homelessness,Homelessness
South Ribble Council,http://Statistics.Data.gov.uk\Doc\Local Authority\30UN,29/07/2020,267.50,DVLA,ROAD TAX - BR19ODN,Road Tax,172400,Area 2 - Waste Transport/Easte,Mechanics & Transport
South Ribble Council,http://Statistics.Data.gov.uk\Doc\Local Authority\30UN,29/07/2020,267.50,DVLA,ROAD TAX BR19 ODM,Road Tax,172400,Area 2 - Waste Transport/Easte,Mechanics & Transport
South Ribble Council,http://Statistics.Data.gov.uk\Doc\Local Authority\30UN,29/07/2020,267.50,DVLA,ROAD TAX - BX19 EOV,Road Tax,172400,Area 2 - Waste Transport/Easte,Mechanics & Transport
South Ribble Council,http://Statistics.Data.gov.uk\Doc\Local Authority\30UN,29/07/2020,267.50,DVLA,ROAD TAX - PE08 CTY,Road Tax,172600,Area 2 - Waste Transport/Easte,Mechanics & Transport
South Ribble Council,http://Statistics.Data.gov.uk\Doc\Local Authority\30UN,29/07/2020,267.50,DVLA,ROAD TAX - PF15 HYU,Road Tax,172840,Area 2 - Waste Transport/Easte,Mechanics & Transport
South Ribble Council,http://Statistics.Data.gov.uk\Doc\Local Authority\30UN,29/07/2020,404.50,DVLA,Road tax VK09 AHJ (6 months only),Road Tax,172840,Area 2 - Waste Transport/Easte,Mechanics & Transport
South Ribble Council,http://Statistics.Data.gov.uk\Doc\Local Authority\30UN,26/08/2020,202.50,DVLA,Road tax GX19 DZF,Road Tax,172400,Area 2 - Waste Transport/Easte,Mechanics & Transport
South Ribble Council,http://Statistics.Data.gov.uk\Doc\Local Authority\30UN,26/08/2020,267.50,DVLA,Road tax LN69 XRL,Road Tax,173800,Area 2 - Waste Transport/Easte,Mechanics & Transport
South Ribble Council,http://Statistics.Data.gov.uk\Doc\Local Authority\30UN,26/08/2020,267.50,DVLA,Road Tax LN69 XRM,Road Tax,172300,Area 2 - Waste Transport/Easte,Mechanics & Transport
South Ribble Council,http://Statistics.Data.gov.uk\Doc\Local Authority\30UN,26/08/2020,267.50,DVLA,Road tax PN58 WFZ,Road Tax,172300,Area 2 - Waste Transport/Easte,Mechanics & Transport
South Ribble Council,http://Statistics.Data.gov.uk\Doc\Local Authority\30UN,24/09/2020,267.50,DVLA,Road tax Sept 20 - BJ66SKU,Road Tax,172300,Area 2 - Waste Transport/Easte,Mechanics & Transport
South Ribble Council,http://Statistics.Data.gov.uk\Doc\Local Authority\30UN,24/09/2020,267.50,DVLA,Road Tax Sept 20 - BJ66 MKL,Road Tax,172300,Area 2 - Waste Transport/Easte,Mechanics & Transport
South Ribble Council,http://Statistics.Data.gov.uk\Doc\Local Authority\30UN,24/09/2020,267.50,DVLA,Road Tax Sept 20 - BJ66 SKD,Road Tax,172300,Area 2 - Waste Transport/Easte,Mechanics & Transport
South Ribble Council,http://Statistics.Data.gov.uk\Doc\Local Authority\30UN,24/09/2020,267.50,DVLA,Road Tax Sept 20 - BJ66 SMO,Road Tax,174300,Area 2 - Waste Transport/Easte,Mechanics & Transport
South Ribble Council,http://Statistics.Data.gov.uk\Doc\Local Authority\30UN,24/09/2020,267.50,DVLA,Road Tax Sept 20 - BJ66SKX,Road Tax,114000,Area 2 - Waste Transport/Easte,Mechanics & Transport
South Ribble Council,http://Statistics.Data.gov.uk\Doc\Local Authority\30UN,24/09/2020,302.50,DVLA,Road tax Sept 20 - VO65 KPX,Road Tax,172810,Area 2 - Waste Transport/Easte,Mechanics & Transport
South Ribble Council,http://Statistics.Data.gov.uk\Doc\Local Authority\30UN,24/09/2020,467.50,DVLA,Road tax Sept 20 - S11 RBC,Road Tax,143750,Area 2 - Waste Transport/Easte,Mechanics & Transport
South Ribble Council,http://Statistics.Data.gov.uk\Doc\Local Authority\30UN,14/08/2020,355.00,Preston County Court,Claim in respect of travellers on Council land,Court Fees,142000,Legal,Legal
South Ribble Council,http://Statistics.Data.gov.uk\Doc\Local Authority\30UN,22/07/2020,8.44,IONOS,SUPPORT FOR SOUTH RIBBLE PARTNERSHIP WEBSITE,Online Purchase,103100,Revenues Plus,Revenues Plus
South Ribble Council,http://Statistics.Data.gov.uk\Doc\Local Authority\30UN,12/08/2020,190.00,POST OFFICE,SECURITY INDUSTRY AUTHORITY LICENCE FOR STAFF,Store Purchase,113210,Revenues Plus,Revenues Plus
South Ribble Council,http://Statistics.Data.gov.uk\Doc\Local Authority\30UN,22/08/2020,8.44,IONOS,EXTENDED SUPPORT FOR SOUTH RIBBLE PARTNERSHIP WEBSITE,Online Purchase,103100,Revenues Plus,Revenues Plus
South Ribble Council,http://Statistics.Data.gov.uk\Doc\Local Authority\30UN,22/09/2020,8.44,IONOS,EXTENDED SUPPORT FOR SOUTH RIBBLE PARTNERSHIP WEBSITE,Online Purchase,103100,Revenues Plus,Revenues Plus
South Ribble Council,http://Statistics.Data.gov.uk\Doc\Local Authority\30UN,28/07/2020,"1,467.58",Teamviewer,1 Year subscription to enable remote support,Online Purchase,133000,Information Services,Information Services
South Ribble Council,http://Statistics.Data.gov.uk\Doc\Local Authority\30UN,02/07/2020,85.48,Tesco,Items for Covid 19 project,Store Purchase,101019,Regeneration,Community Infrastructure
South Ribble Council,http://Statistics.Data.gov.uk\Doc\Local Authority\30UN,03/07/2020,45.34,Engraving Shop,Engraved plaque for a bench,Online Purchase,114800,Regeneration,Community Infrastructure
South Ribble Council,http://Statistics.Data.gov.uk\Doc\Local Authority\30UN,07/07/2020,66.70,Morrisons,Items for the Covid 19 project.,Store Purchase,101019,Regeneration,Community Infrastructure
South Ribble Council,http://Statistics.Data.gov.uk\Doc\Local Authority\30UN,09/07/2020,147.08,Morrisons,Items for the covid 19 project for the food parcels,Store Purchase,101019,Regeneration,Community Infrastructure
South Ribble Council,http://Statistics.Data.gov.uk\Doc\Local Authority\30UN,21/07/2020,61.08,Hen House,Items for Covid 19 project,Online Purchase,101019,Regeneration,Community Infrastructure
South Ribble Council,http://Statistics.Data.gov.uk\Doc\Local Authority\30UN,22/07/2020,27.93,Savers,Items for the food parcels for Covid 19 project,Store Purchase,101019,Regeneration,Community Infrastructure
South Ribble Council,http://Statistics.Data.gov.uk\Doc\Local Authority\30UN,22/07/2020,33.58,Body Care,Items for the food parcels for Covid 19 project,Store Purchase,101019,Regeneration,Community Infrastructure
South Ribble Council,http://Statistics.Data.gov.uk\Doc\Local Authority\30UN,31/07/2020,101.20,Morrisons,Items for the Covid 19 project,Store Purchase,101019,Regeneration,Community Infrastructure
South Ribble Council,http://Statistics.Data.gov.uk\Doc\Local Authority\30UN,05/08/2020,17.97,Savers,Items for Covid 19 project,Store Purchase,101019,Regeneration,Community Infrastructure
South Ribble Council,http://Statistics.Data.gov.uk\Doc\Local Authority\30UN,05/08/2020,100.00,Avant,Garden Centre vouchers for competition winners,Store Purchase,114800,Regeneration,Community Infrastructure
South Ribble Council,http://Statistics.Data.gov.uk\Doc\Local Authority\30UN,07/08/2020,96.76,Morrisons,Items for Covid 19 project,Store Purchase,101019,Regeneration,Community Infrastructure
South Ribble Council,http://Statistics.Data.gov.uk\Doc\Local Authority\30UN,12/08/2020,5.00,Dunelm,Items for Covid 19 project,Online Purchase,101019,Regeneration,Community Infrastructure
South Ribble Council,http://Statistics.Data.gov.uk\Doc\Local Authority\30UN,12/08/2020,25.95,Dunelm,Items for the Covid 19 project,Online Purchase,101019,Regeneration,Community Infrastructure
South Ribble Council,http://Statistics.Data.gov.uk\Doc\Local Authority\30UN,12/08/2020,55.95,The Range,Items for Covid 19 project,Online Purchase,101019,Regeneration,Community Infrastructure
South Ribble Council,http://Statistics.Data.gov.uk\Doc\Local Authority\30UN,12/08/2020,136.91,ARGOS,Items for Covid 19 project,Online Purchase,101019,Regeneration,Community Infrastructure
South Ribble Council,http://Statistics.Data.gov.uk\Doc\Local Authority\30UN,19/08/2020,93.95,ARGOS,Items for Covid 19 project,Online Purchase,101019,Regeneration,Community Infrastructure
South Ribble Council,http://Statistics.Data.gov.uk\Doc\Local Authority\30UN,21/08/2020,64.69,Kite On Line Terminal,Items for Covid 19,Online Purchase,101019,Regeneration,Community Infrastructure
South Ribble Council,http://Statistics.Data.gov.uk\Doc\Local Authority\30UN,02/09/2020,3.50,Spar,Items for Covid 19 project support,Store Purchase,101019,Regeneration,Community Infrastructure
South Ribble Council,http://Statistics.Data.gov.uk\Doc\Local Authority\30UN,02/09/2020,5.00,Spar,Items for Covid 19 project support,Store Purchase,101019,Regeneration,Community Infrastructure
South Ribble Council,http://Statistics.Data.gov.uk\Doc\Local Authority\30UN,03/09/2020,9.00,Tesco,Items for Community Involvement post interviews,Store Purchase,114800,Regeneration,Community Infrastructure
South Ribble Council,http://Statistics.Data.gov.uk\Doc\Local Authority\30UN,03/09/2020,75.75,Morrisons,Items for Covid 19 project support,Store Purchase,101019,Regeneration,Community Infrastructure
South Ribble Council,http://Statistics.Data.gov.uk\Doc\Local Authority\30UN,04/09/2020,9.00,Tesco,Items for Community Involvement post interviews,Store Purchase,114800,Regeneration,Community Infrastructure
South Ribble Council,http://Statistics.Data.gov.uk\Doc\Local Authority\30UN,09/09/2020,9.10,Tesco,Items for Sunflower competition as part of In Bloom,Store Purchase,114800,Regeneration,Community Infrastructure
South Ribble Council,http://Statistics.Data.gov.uk\Doc\Local Authority\30UN,09/09/2020,10.00,John Harrison,Items for Sunflower Competition as part of In Bloom 2020,Store Purchase,114800,Regeneration,Community Infrastructure
South Ribble Council,http://Statistics.Data.gov.uk\Doc\Local Authority\30UN,09/09/2020,60.00,Range,Prizes for sunflower competition,Store Purchase,114800,Regeneration,Community Infrastructure
South Ribble Council,http://Statistics.Data.gov.uk\Doc\Local Authority\30UN,11/09/2020,17.41,Morrisons,Items for food parcels for Covid 19 project,Store Purchase,101019,Regeneration,Community Infrastructure
South Ribble Council,http://Statistics.Data.gov.uk\Doc\Local Authority\30UN,18/09/2020,213.26,Morrisons,Items for the food parcels for Covid 19,Store Purchase,101019,Regeneration,Community Infrastructure
South Ribble Council,http://Statistics.Data.gov.uk\Doc\Local Authority\30UN,25/09/2020,52.08,Morrisons,Items for Covid 19 project food parcels,Store Purchase,101019,Regeneration,Community Infrastructure
South Ribble Council,http://Statistics.Data.gov.uk\Doc\Local Authority\30UN,28/09/2020,31.75,C and W Berry,Lock for the Giant Veggie Patch,Store Purchase,114800,Regeneration,Community Infrastructure
South Ribble Council,http://Statistics.Data.gov.uk\Doc\Local Authority\30UN,28/08/2020,267.50,DVLA,"Road Tax, August 2020, PN58 WKH",Road Tax,173800,Neighbourhood Admin & Support,Admin Support
